[Event "Live Chess"]
[Site "Chess.com"]
[Date "2023.05.21"]
[Round "-"]
[White "JoeyCage"]
[Black "ZackirtyChess"]
[Result "1-0"]
[WhiteElo "2302"]
[BlackElo "1183"]
[TimeControl "300"]
[EndTime "4:07:58 PDT"]
[Termination "JoeyCage won by checkmate"]

1. e4 {[%clk 0:04:57.1]} 1... e5 {[%clk 0:04:59.1]} 2. Nf3 {[%clk 0:04:55.8]}
2... Nc6 {[%clk 0:04:56.3]} 3. Bb5 {[%clk 0:04:54.4]} 3... a6 {[%clk 0:04:53.1]}
4. Bxc6 {[%clk 0:04:53.2]} 4... dxc6 {[%clk 0:04:52.3]} 5. d4 {[%clk 0:04:53.1]}
5... exd4 {[%clk 0:04:49.6]} 6. Qxd4 {[%clk 0:04:52]} 6... Bg4 {[%clk 0:04:43]}
7. Nbd2 {[%clk 0:04:50.3]} 7... Qxd4 {[%clk 0:04:34.9]} 8. Nxd4 {[%clk
0:04:48.9]} 8... Nf6 {[%clk 0:04:34.3]} 9. f3 {[%clk 0:04:47.2]} 9... Bh5 {[%clk
0:04:28.5]} 10. Ne2 {[%clk 0:04:44.3]} 10... Bc5 {[%clk 0:04:23.8]} 11. Nb3
{[%clk 0:04:40.8]} 11... Bb6 {[%clk 0:04:22.5]} 12. Ng3 {[%clk 0:04:38.9]} 12...
Bg6 {[%clk 0:04:19.7]} 13. Bg5 {[%clk 0:04:31.9]} 13... Nd7 {[%clk 0:04:09.5]}
14. O-O-O {[%clk 0:04:26.4]} 14... Nc5 {[%clk 0:04:01.4]} 15. Nxc5 {[%clk
0:04:20.2]} 15... Bxc5 {[%clk 0:04:01.3]} 16. Bf4 {[%clk 0:04:18.3]} 16... Bb6
{[%clk 0:03:55.6]} 17. h4 {[%clk 0:04:16.5]} 17... h6 {[%clk 0:03:48.3]} 18. h5
{[%clk 0:04:14.9]} 18... Bh7 {[%clk 0:03:47.6]} 19. Rh4 {[%clk 0:04:12.1]} 19...
O-O {[%clk 0:03:42.4]} 20. Rg4 {[%clk 0:04:10.8]} 20... Rfe8 {[%clk 0:03:36.8]}
21. Bxh6 {[%clk 0:04:07.7]} 21... g6 {[%clk 0:03:29.2]} 22. Bf4 {[%clk
0:03:54.1]} 22... Rad8 {[%clk 0:03:22.8]} 23. hxg6 {[%clk 0:03:49.2]} 23... fxg6
{[%clk 0:03:17.9]} 24. Rh1 {[%clk 0:03:46.4]} 24... Re7 {[%clk 0:03:07.3]} 25.
Bg5 {[%clk 0:03:44.2]} 25... Red7 {[%clk 0:03:03.9]} 26. Bxd8 {[%clk 0:03:42.7]}
26... Rxd8 {[%clk 0:03:03.5]} 27. Rgh4 {[%clk 0:03:36.8]} 27... Rd7 {[%clk
0:02:58.2]} 28. Rxh7 {[%clk 0:03:29.4]} 28... Rxh7 {[%clk 0:02:51.1]} 29. Rxh7
{[%clk 0:03:27.8]} 29... Kxh7 {[%clk 0:02:50.3]} 30. Kd2 {[%clk 0:03:26.6]}
30... Kg7 {[%clk 0:02:49]} 31. Ne2 {[%clk 0:03:23.2]} 31... Kf6 {[%clk
0:02:48.1]} 32. Kd3 {[%clk 0:03:21]} 32... Ke5 {[%clk 0:02:46.1]} 33. f4+ {[%clk
0:03:18.2]} 33... Ke6 {[%clk 0:02:41.5]} 34. Nd4+ {[%clk 0:03:15.2]} 34... Kd6
{[%clk 0:02:34.1]} 35. e5+ {[%clk 0:03:12.8]} 35... Ke7 {[%clk 0:02:29.1]} 36.
Ke4 {[%clk 0:03:11.4]} 36... Bxd4 {[%clk 0:02:26.8]} 37. Kxd4 {[%clk 0:03:09.3]}
37... Ke6 {[%clk 0:02:26.3]} 38. Ke4 {[%clk 0:03:08.1]} 38... b6 {[%clk
0:02:21.9]} 39. g4 {[%clk 0:03:06.4]} 39... c5 {[%clk 0:02:20.7]} 40. f5+ {[%clk
0:03:05.1]} 40... gxf5+ {[%clk 0:02:20]} 41. gxf5+ {[%clk 0:03:03.9]} 41... Kf7
{[%clk 0:02:19.5]} 42. Kd5 {[%clk 0:03:02.8]} 42... a5 {[%clk 0:02:16.8]} 43.
Kc6 {[%clk 0:03:01.5]} 43... c4 {[%clk 0:02:10.5]} 44. Kxc7 {[%clk 0:02:59.7]}
44... b5 {[%clk 0:02:09.9]} 45. Kb6 {[%clk 0:02:58.2]} 45... a4 {[%clk
0:02:06.2]} 46. a3 {[%clk 0:02:56.4]} 46... b4 {[%clk 0:02:03.2]} 47. c3 {[%clk
0:02:53.8]} 47... Ke7 {[%clk 0:01:58.6]} 48. Kc5 {[%clk 0:02:49.9]} 48... bxa3
{[%clk 0:01:55.8]} 49. bxa3 {[%clk 0:02:48.7]} 49... Kd7 {[%clk 0:01:54.9]} 50.
Kxc4 {[%clk 0:02:45.9]} 50... Ke7 {[%clk 0:01:54.4]} 51. Kd5 {[%clk 0:02:44.2]}
51... Kf7 {[%clk 0:01:53.8]} 52. c4 {[%clk 0:02:43.7]} 52... Ke7 {[%clk
0:01:52.6]} 53. c5 {[%clk 0:02:43.6]} 53... Kd7 {[%clk 0:01:52.1]} 54. c6+
{[%clk 0:02:43.5]} 54... Kc7 {[%clk 0:01:51.6]} 55. f6 {[%clk 0:02:42.7]} 55...
Kd8 {[%clk 0:01:50.5]} 56. e6 {[%clk 0:02:34.7]} 56... Ke8 {[%clk 0:01:48.9]}
57. c7 {[%clk 0:02:32.8]} 57... Kf8 {[%clk 0:01:47]} 58. c8=Q# {[%clk
0:02:31.5]} 1-0

[Event "Live Chess"]
[Site "Chess.com"]
[Date "2023.05.21"]
[Round "-"]
[White "Doge_Dandolo"]
[Black "FlorinHristea"]
[Result "1-0"]
[WhiteElo "1879"]
[BlackElo "1830"]
[TimeControl "300"]
[EndTime "4:07:59 PDT"]
[Termination "Doge_Dandolo won by resignation"]

1. Nf3 {[%clk 0:04:56.8]} 1... d5 {[%clk 0:04:55.6]} 2. d4 {[%clk 0:04:55.4]}
2... c5 {[%clk 0:04:55.2]} 3. g3 {[%clk 0:04:53.4]} 3... Nc6 {[%clk 0:04:54.9]}
4. Bg2 {[%clk 0:04:51.9]} 4... Bf5 {[%clk 0:04:54.6]} 5. O-O {[%clk 0:04:49.1]}
5... e6 {[%clk 0:04:54.2]} 6. c4 {[%clk 0:04:45.9]} 6... Nf6 {[%clk 0:04:53.2]}
7. cxd5 {[%clk 0:04:44.7]} 7... exd5 {[%clk 0:04:53.1]} 8. Bg5 {[%clk
0:04:41.3]} 8... Be7 {[%clk 0:04:51.9]} 9. Bxf6 {[%clk 0:04:39.4]} 9... Bxf6
{[%clk 0:04:51]} 10. Nc3 {[%clk 0:04:36.9]} 10... cxd4 {[%clk 0:04:49.1]} 11.
Nb5 {[%clk 0:04:35.6]} 11... O-O {[%clk 0:04:41]} 12. Nbxd4 {[%clk 0:04:32]}
12... Be4 {[%clk 0:04:39.5]} 13. Qd2 {[%clk 0:04:19.1]} 13... Qa5 {[%clk
0:04:34.9]} 14. Qxa5 {[%clk 0:04:14]} 14... Nxa5 {[%clk 0:04:34.8]} 15. Rac1
{[%clk 0:04:07.6]} 15... Rac8 {[%clk 0:04:33.1]} 16. b3 {[%clk 0:04:02.3]} 16...
Nc6 {[%clk 0:04:24.7]} 17. Nxc6 {[%clk 0:03:56.6]} 17... Rxc6 {[%clk 0:04:23.5]}
18. Rxc6 {[%clk 0:03:55.1]} 18... bxc6 {[%clk 0:04:23.4]} 19. Rc1 {[%clk
0:03:52.7]} 19... Rc8 {[%clk 0:04:23.1]} 20. e3 {[%clk 0:03:45.6]} 20... Kf8
{[%clk 0:04:20]} 21. Kf1 {[%clk 0:03:40.5]} 21... Ke7 {[%clk 0:04:19.3]} 22. Ne1
{[%clk 0:03:37.4]} 22... Bxg2+ {[%clk 0:04:15.7]} 23. Nxg2 {[%clk 0:03:36.3]}
23... g5 {[%clk 0:04:12]} 24. h4 {[%clk 0:03:31.7]} 24... h6 {[%clk 0:04:10.7]}
25. hxg5 {[%clk 0:03:30.3]} 25... hxg5 {[%clk 0:04:09.7]} 26. g4 {[%clk
0:03:27.8]} 26... Kd6 {[%clk 0:04:07.3]} 27. Ne1 {[%clk 0:03:26.1]} 27... a5
{[%clk 0:04:02.1]} 28. Nd3 {[%clk 0:03:23.7]} 28... Rb8 {[%clk 0:03:55.8]} 29.
Nc5 {[%clk 0:03:16.8]} 29... Bb2 {[%clk 0:03:48.4]} 30. Rc2 {[%clk 0:03:14.8]}
30... Ba3 {[%clk 0:03:47.1]} 31. Na4 {[%clk 0:03:05.1]} 31... Re8 {[%clk
0:03:36.8]} 32. Nc3 {[%clk 0:02:56.5]} 32... Bb4 {[%clk 0:03:34.1]} 33. Ne2
{[%clk 0:02:51.9]} 33... Re4 {[%clk 0:03:33.5]} 34. Nd4 {[%clk 0:02:49.8]} 34...
Rxg4 {[%clk 0:03:25.3]} 35. Rxc6+ {[%clk 0:02:44.4]} 35... Kd7 {[%clk
0:03:21.4]} 36. Rf6 {[%clk 0:02:37.5]} 36... Ke7 {[%clk 0:03:18.7]} 37. Rf5
{[%clk 0:02:33.4]} 37... f6 {[%clk 0:03:13.7]} 38. Rxd5 {[%clk 0:02:25.5]} 38...
Rh4 {[%clk 0:03:10.5]} 39. Nf5+ {[%clk 0:02:22.6]} 1-0

[Event "Live Chess"]
[Site "Chess.com"]
[Date "2023.05.21"]
[Round "-"]
[White "LiamBellwood"]
[Black "Conradical12"]
[Result "1-0"]
[WhiteElo "1909"]
[BlackElo "1565"]
[TimeControl "300"]
[EndTime "4:08:06 PDT"]
[Termination "LiamBellwood won by resignation"]

1. d4 {[%clk 0:04:58.2]} 1... Nf6 {[%clk 0:04:56.4]} 2. Nc3 {[%clk 0:04:56.6]}
2... e5 {[%clk 0:04:55.7]} 3. dxe5 {[%clk 0:04:55.7]} 3... Ng4 {[%clk
0:04:51.1]} 4. e4 {[%clk 0:04:55.6]} 4... Nxe5 {[%clk 0:04:39.9]} 5. f4 {[%clk
0:04:54.8]} 5... Bb4 {[%clk 0:04:29.4]} 6. fxe5 {[%clk 0:04:42.9]} 6... Qh4+
{[%clk 0:04:28.9]} 7. Kd2 {[%clk 0:04:34.6]} 7... O-O {[%clk 0:04:17.5]} 8. Nf3
{[%clk 0:04:32.2]} 8... Qxe4 {[%clk 0:04:14.1]} 9. Bd3 {[%clk 0:04:29.7]} 9...
Qg4 {[%clk 0:04:09.3]} 10. Qe2 {[%clk 0:04:18.2]} 10... Nc6 {[%clk 0:04:01.7]}
11. a3 {[%clk 0:04:16.5]} 11... Bxc3+ {[%clk 0:04:00]} 12. Kxc3 {[%clk
0:04:14.2]} 12... Re8 {[%clk 0:03:54.1]} 13. h3 {[%clk 0:04:00.2]} 13... Qh5
{[%clk 0:03:46.9]} 14. g4 {[%clk 0:03:46.7]} 1-0

[Event "Live Chess"]
[Site "Chess.com"]
[Date "2023.05.21"]
[Round "-"]
[White "RoaringKnights"]
[Black "DoYouLikeCurry"]
[Result "0-1"]
[WhiteElo "1076"]
[BlackElo "1402"]
[TimeControl "300"]
[EndTime "4:08:09 PDT"]
[Termination "DoYouLikeCurry won by checkmate"]

1. e4 {[%clk 0:04:59.6]} 1... c6 {[%clk 0:04:58.8]} 2. Bc4 {[%clk 0:04:58.2]}
2... d5 {[%clk 0:04:57.3]} 3. exd5 {[%clk 0:04:57.4]} 3... cxd5 {[%clk
0:04:57.2]} 4. Bb5+ {[%clk 0:04:56.7]} 4... Nc6 {[%clk 0:04:54.1]} 5. d3 {[%clk
0:04:51.9]} 5... Qa5+ {[%clk 0:04:45.2]} 6. Nc3 {[%clk 0:04:49.3]} 6... d4
{[%clk 0:04:44.4]} 7. Bxc6+ {[%clk 0:04:48.5]} 7... bxc6 {[%clk 0:04:41.6]} 8.
b4 {[%clk 0:04:47.3]} 8... Qxb4 {[%clk 0:04:38.4]} 9. a3 {[%clk 0:04:46.1]} 9...
Qxc3+ {[%clk 0:04:35.7]} 10. Bd2 {[%clk 0:04:43.6]} 10... Qc5 {[%clk 0:04:32.6]}
11. Qe2 {[%clk 0:04:41.7]} 11... Nf6 {[%clk 0:04:28.8]} 12. c4 {[%clk
0:04:39.5]} 12... e5 {[%clk 0:04:20.7]} 13. Nf3 {[%clk 0:04:36.6]} 13... Bg4
{[%clk 0:04:11.1]} 14. Qxe5+ {[%clk 0:04:32.6]} 14... Qxe5+ {[%clk 0:04:09]} 15.
Nxe5 {[%clk 0:04:31.9]} 15... c5 {[%clk 0:04:03.6]} 16. Rb1 {[%clk 0:04:26.9]}
16... Bd6 {[%clk 0:03:58.4]} 17. Nxg4 {[%clk 0:04:23.2]} 17... Nxg4 {[%clk
0:03:58.3]} 18. h3 {[%clk 0:04:18]} 18... Nf6 {[%clk 0:03:55.7]} 19. O-O {[%clk
0:04:16.3]} 19... O-O {[%clk 0:03:53.1]} 20. Bg5 {[%clk 0:04:13.7]} 20... Be7
{[%clk 0:03:43.5]} 21. Bxf6 {[%clk 0:04:10.9]} 21... Bxf6 {[%clk 0:03:42.4]} 22.
Rb5 {[%clk 0:04:09.8]} 22... Rfc8 {[%clk 0:03:38.2]} 23. a4 {[%clk 0:04:07.9]}
23... Rab8 {[%clk 0:03:28.8]} 24. Rfb1 {[%clk 0:04:04.5]} 24... Rxb5 {[%clk
0:03:24.8]} 25. axb5 {[%clk 0:04:00.8]} 25... Bd8 {[%clk 0:03:14]} 26. Ra1
{[%clk 0:03:58.2]} 26... Bb6 {[%clk 0:03:04.4]} 27. Kh2 {[%clk 0:03:55.5]} 27...
Re8 {[%clk 0:03:01.1]} 28. Kg3 {[%clk 0:03:52.7]} 28... Re2 {[%clk 0:02:57.3]}
29. Kf3 {[%clk 0:03:51.1]} 29... Rd2 {[%clk 0:02:54.3]} 30. Ke4 {[%clk
0:03:48.9]} 30... Rxf2 {[%clk 0:02:51]} 31. g4 {[%clk 0:03:46.2]} 31... Re2+
{[%clk 0:02:47.8]} 32. Kf3 {[%clk 0:03:44]} 32... Re3+ {[%clk 0:02:45]} 33. Kf4
{[%clk 0:03:42.1]} 33... Rxd3 {[%clk 0:02:44.2]} 34. Re1 {[%clk 0:03:40.5]}
34... g6 {[%clk 0:02:36.4]} 35. Kg5 {[%clk 0:03:38.5]} 35... Re3 {[%clk
0:02:31.9]} 36. Rf1 {[%clk 0:03:31.4]} 36... Bd8+ {[%clk 0:02:27.1]} 37. Kf4
{[%clk 0:03:29]} 37... Rxh3 {[%clk 0:02:15.7]} 38. g5 {[%clk 0:03:27.2]} 38...
d3 {[%clk 0:02:08.7]} 39. Kg4 {[%clk 0:03:25.6]} 39... Re3 {[%clk 0:02:05.4]}
40. Rd1 {[%clk 0:03:23.5]} 40... Bxg5 {[%clk 0:02:00.6]} 41. Kxg5 {[%clk
0:03:22.2]} 41... Re4 {[%clk 0:01:55.7]} 42. Rxd3 {[%clk 0:03:19.3]} 42... Kg7
{[%clk 0:01:50.3]} 43. Rd7 {[%clk 0:03:15.3]} 43... h6# {[%clk 0:01:45.2]} 0-1

[Event "Live Chess"]
[Site "Chess.com"]
[Date "2023.05.21"]
[Round "-"]
[White "JormaIbo"]
[Black "JanMur7"]
[Result "0-1"]
[WhiteElo "446"]
[BlackElo "1978"]
[TimeControl "300"]
[EndTime "4:08:09 PDT"]
[Termination "JanMur7 won by resignation"]

1. e4 {[%clk 0:04:58.1]} 1... e5 {[%clk 0:04:58.7]} 2. Nf3 {[%clk 0:04:57.4]}
2... Nc6 {[%clk 0:04:58.1]} 3. Bc4 {[%clk 0:04:55.9]} 3... Bc5 {[%clk
0:04:56.9]} 4. O-O {[%clk 0:04:47.8]} 4... Nf6 {[%clk 0:04:55.3]} 5. d3 {[%clk
0:04:44.8]} 5... d6 {[%clk 0:04:54.2]} 6. Nc3 {[%clk 0:04:36.5]} 6... Bg4 {[%clk
0:04:52.4]} 7. h3 {[%clk 0:04:26.6]} 7... Bh5 {[%clk 0:04:50.5]} 8. a3 {[%clk
0:04:06.3]} 8... Nd4 {[%clk 0:04:48.3]} 9. Nd5 {[%clk 0:03:07.6]} 9... Nxd5
{[%clk 0:04:33.6]} 10. Bxd5 {[%clk 0:03:06.5]} 10... c6 {[%clk 0:04:30]} 11. Bb3
{[%clk 0:02:26]} 11... Nxf3+ {[%clk 0:04:26.2]} 12. gxf3 {[%clk 0:02:24.6]}
12... Qf6 {[%clk 0:04:25.1]} 13. Qd2 {[%clk 0:01:54.4]} 13... Qxf3 {[%clk
0:04:15.4]} 14. Qg5 {[%clk 0:01:04.9]} 14... h6 {[%clk 0:04:07.5]} 15. Qg3
{[%clk 0:01:01]} 15... Qxg3+ {[%clk 0:04:01.7]} 0-1

[Event "Live Chess"]
[Site "Chess.com"]
[Date "2023.05.21"]
[Round "-"]
[White "Nazar_777"]
[Black "Dhaydon19"]
[Result "0-1"]
[WhiteElo "1580"]
[BlackElo "2697"]
[TimeControl "300"]
[EndTime "4:08:10 PDT"]
[Termination "Dhaydon19 won by checkmate"]

1. e3 {[%clk 0:04:55]} 1... c6 {[%clk 0:04:59.2]} 2. h4 {[%clk 0:04:46.3]} 2...
d5 {[%clk 0:04:58]} 3. a3 {[%clk 0:04:45.6]} 3... Nf6 {[%clk 0:04:56.7]} 4. c4
{[%clk 0:04:44.7]} 4... g6 {[%clk 0:04:54.9]} 5. cxd5 {[%clk 0:04:43.6]} 5...
cxd5 {[%clk 0:04:54.3]} 6. Nc3 {[%clk 0:04:42.7]} 6... Nc6 {[%clk 0:04:53.4]} 7.
Nf3 {[%clk 0:04:41.7]} 7... Bg7 {[%clk 0:04:52.4]} 8. Be2 {[%clk 0:04:40.7]}
8... O-O {[%clk 0:04:51.3]} 9. Qc2 {[%clk 0:04:39.8]} 9... e5 {[%clk 0:04:49.7]}
10. Ng5 {[%clk 0:04:38.7]} 10... Bf5 {[%clk 0:04:46.4]} 11. Bd3 {[%clk
0:04:37.3]} 11... e4 {[%clk 0:04:44]} 12. Be2 {[%clk 0:04:36]} 12... h6 {[%clk
0:04:38.6]} 13. Nh3 {[%clk 0:04:33.7]} 13... d4 {[%clk 0:04:37.7]} 14. Nb1
{[%clk 0:04:29.3]} 14... d3 {[%clk 0:04:36.3]} 15. Qd1 {[%clk 0:04:28]} 15...
dxe2 {[%clk 0:04:35.3]} 16. Qxe2 {[%clk 0:04:26.7]} 16... Ne5 {[%clk 0:04:34.9]}
17. Nc3 {[%clk 0:04:24.6]} 17... Bg4 {[%clk 0:04:32.8]} 18. Qb5 {[%clk
0:04:16.6]} 18... Nd3+ {[%clk 0:04:26]} 19. Kf1 {[%clk 0:04:12.4]} 19... Re8
{[%clk 0:04:24.6]} 20. g3 {[%clk 0:04:08.7]} 20... Re5 {[%clk 0:04:21.3]} 21.
Qxb7 {[%clk 0:03:53.4]} 21... g5 {[%clk 0:04:20]} 22. hxg5 {[%clk 0:03:41]}
22... hxg5 {[%clk 0:04:18.3]} 23. Nxg5 {[%clk 0:03:12.5]} 23... Rxg5 {[%clk
0:04:16.7]} 24. Nxe4 {[%clk 0:03:10.8]} 24... Bf3 {[%clk 0:04:13.3]} 25. Nxf6+
{[%clk 0:03:06.1]} 25... Qxf6 {[%clk 0:04:11.7]} 26. Qc7 {[%clk 0:02:13.6]}
26... Bxh1 {[%clk 0:04:08.7]} 27. f4 {[%clk 0:02:11.4]} 27... Bf3 {[%clk
0:04:05.9]} 28. fxg5 {[%clk 0:02:05.1]} 28... Qf5 {[%clk 0:04:04.7]} 29. Qf4
{[%clk 0:01:55.8]} 29... Qh3+ {[%clk 0:04:02.9]} 30. Kg1 {[%clk 0:01:29.2]}
30... Qg2# {[%clk 0:04:01.4]} 0-1

[Event "Live Chess"]
[Site "Chess.com"]
[Date "2023.05.21"]
[Round "-"]
[White "ChessTWSS"]
[Black "Shepherds_Pie"]
[Result "0-1"]
[WhiteElo "1627"]
[BlackElo "1948"]
[TimeControl "300"]
[EndTime "4:08:12 PDT"]
[Termination "Shepherds_Pie won by checkmate"]

1. d4 {[%clk 0:04:56]} 1... d5 {[%clk 0:04:58.1]} 2. Bf4 {[%clk 0:04:52.5]} 2...
Nf6 {[%clk 0:04:56.5]} 3. e3 {[%clk 0:04:48.4]} 3... c5 {[%clk 0:04:55.3]} 4. c3
{[%clk 0:04:44.1]} 4... Nc6 {[%clk 0:04:54]} 5. Nd2 {[%clk 0:04:39.9]} 5... g6
{[%clk 0:04:53]} 6. Ngf3 {[%clk 0:04:34.8]} 6... Bg7 {[%clk 0:04:52]} 7. Bd3
{[%clk 0:04:27.7]} 7... O-O {[%clk 0:04:50.6]} 8. Ne5 {[%clk 0:04:21.5]} 8... c4
{[%clk 0:04:48.4]} 9. Bc2 {[%clk 0:04:17.1]} 9... Qe8 {[%clk 0:04:46.1]} 10. a3
{[%clk 0:04:08.8]} 10... Nd7 {[%clk 0:04:43.9]} 11. h3 {[%clk 0:04:01.7]} 11...
Ndxe5 {[%clk 0:04:40.9]} 12. Bxe5 {[%clk 0:03:57.6]} 12... Nxe5 {[%clk
0:04:39.5]} 13. dxe5 {[%clk 0:03:53.2]} 13... Bxe5 {[%clk 0:04:38.2]} 14. Nf3
{[%clk 0:03:47.7]} 14... Bg7 {[%clk 0:04:35.6]} 15. Qxd5 {[%clk 0:03:41.1]}
15... Be6 {[%clk 0:04:34.3]} 16. Qxb7 {[%clk 0:03:29.2]} 16... Rb8 {[%clk
0:04:33]} 17. Qxa7 {[%clk 0:03:25.2]} 17... Rxb2 {[%clk 0:04:31.6]} 18. Ba4
{[%clk 0:03:18.5]} 18... Bxc3+ {[%clk 0:04:23.9]} 19. Kf1 {[%clk 0:03:12.7]}
19... Qd8 {[%clk 0:04:17.8]} 20. Rd1 {[%clk 0:02:54.9]} 20... Qb8 {[%clk
0:04:07.7]} 21. Qxb8 {[%clk 0:02:45.3]} 21... Rfxb8 {[%clk 0:04:05.1]} 22. Ng5
{[%clk 0:02:36.5]} 22... Bf5 {[%clk 0:03:50.6]} 23. g4 {[%clk 0:02:32.1]} 23...
Bd3+ {[%clk 0:03:46.2]} 24. Kg2 {[%clk 0:02:26.5]} 24... h6 {[%clk 0:03:43.6]}
25. Nf3 {[%clk 0:02:00.4]} 25... Be4 {[%clk 0:03:42.1]} 26. h4 {[%clk
0:01:50.4]} 26... Bd2 {[%clk 0:03:29.5]} 27. Rxd2 {[%clk 0:01:40.9]} 27... Bxf3+
{[%clk 0:03:27.5]} 28. Kxf3 {[%clk 0:01:36]} 28... Rxd2 {[%clk 0:03:27.4]} 29.
Rd1 {[%clk 0:01:32.2]} 29... Rxd1 {[%clk 0:03:21.6]} 30. Bxd1 {[%clk 0:01:32.1]}
30... Rb2 {[%clk 0:03:17.7]} 31. Kg3 {[%clk 0:01:17.8]} 31... c3 {[%clk
0:03:16.5]} 32. f4 {[%clk 0:01:12.2]} 32... c2 {[%clk 0:03:15.4]} 33. Bxc2
{[%clk 0:01:11.7]} 33... Rxc2 {[%clk 0:03:14]} 34. g5 {[%clk 0:01:11.1]} 34...
hxg5 {[%clk 0:03:11.7]} 35. hxg5 {[%clk 0:01:10.6]} 35... Ra2 {[%clk 0:03:10.6]}
36. Kg4 {[%clk 0:01:10.5]} 36... Rxa3 {[%clk 0:03:09.3]} 37. f5 {[%clk
0:01:10.4]} 37... Rxe3 {[%clk 0:03:05.9]} 38. fxg6 {[%clk 0:01:10.3]} 38... fxg6
{[%clk 0:03:04.2]} 39. Kf4 {[%clk 0:01:08.9]} 39... Ra3 {[%clk 0:03:02.8]} 40.
Kg4 {[%clk 0:01:08.1]} 40... Ra5 {[%clk 0:03:01.3]} 41. Kh4 {[%clk 0:01:05.9]}
41... Kf7 {[%clk 0:02:59.9]} 42. Kg4 {[%clk 0:01:05.3]} 42... Ke6 {[%clk
0:02:58.8]} 43. Kf4 {[%clk 0:01:04.7]} 43... Ra4+ {[%clk 0:02:57]} 44. Kg3
{[%clk 0:01:03.3]} 44... Kf5 {[%clk 0:02:56]} 45. Kf3 {[%clk 0:01:02.2]} 45...
e5 {[%clk 0:02:55.1]} 46. Ke3 {[%clk 0:01:02.1]} 46... Ra3+ {[%clk 0:02:53.3]}
47. Kd2 {[%clk 0:01:01.1]} 47... Ke4 {[%clk 0:02:52.4]} 48. Kc2 {[%clk
0:00:59.4]} 48... Kd4 {[%clk 0:02:51.6]} 49. Kb2 {[%clk 0:00:58.8]} 49... Rh3
{[%clk 0:02:50.3]} 50. Kc2 {[%clk 0:00:55.5]} 50... e4 {[%clk 0:02:49.3]} 51.
Kb2 {[%clk 0:00:52.1]} 51... Kc4 {[%clk 0:02:48.5]} 52. Ka2 {[%clk 0:00:50]}
52... Kb4 {[%clk 0:02:47.7]} 53. Kb2 {[%clk 0:00:49.4]} 53... Rh2+ {[%clk
0:02:46.9]} 54. Kc1 {[%clk 0:00:48.6]} 54... Kc3 {[%clk 0:02:45]} 55. Kd1 {[%clk
0:00:47.9]} 55... e3 {[%clk 0:02:43.2]} 56. Ke1 {[%clk 0:00:46.4]} 56... Kd3
{[%clk 0:02:41.6]} 57. Kf1 {[%clk 0:00:45.4]} 57... Ra2 {[%clk 0:02:40]} 58. Ke1
{[%clk 0:00:41]} 58... Ra1# {[%clk 0:02:37.7]} 0-1

[Event "Live Chess"]
[Site "Chess.com"]
[Date "2023.05.21"]
[Round "-"]
[White "McSlash1"]
[Black "lateforthesky"]
[Result "0-1"]
[WhiteElo "2003"]
[BlackElo "2132"]
[TimeControl "300"]
[EndTime "4:08:16 PDT"]
[Termination "lateforthesky won by resignation"]

1. e4 {[%clk 0:04:59.1]} 1... c5 {[%clk 0:04:58.2]} 2. Nc3 {[%clk 0:04:58.2]}
2... a6 {[%clk 0:04:54.6]} 3. f4 {[%clk 0:04:56.4]} 3... b5 {[%clk 0:04:53.6]}
4. a3 {[%clk 0:04:55.5]} 4... Bb7 {[%clk 0:04:51.7]} 5. Nf3 {[%clk 0:04:54.8]}
5... e6 {[%clk 0:04:48.9]} 6. d3 {[%clk 0:04:54.3]} 6... Nf6 {[%clk 0:04:41.9]}
7. Be2 {[%clk 0:04:53.7]} 7... d5 {[%clk 0:04:40.6]} 8. O-O {[%clk 0:04:53.6]}
8... dxe4 {[%clk 0:04:39.2]} 9. dxe4 {[%clk 0:04:53.5]} 9... Qxd1 {[%clk
0:04:37.3]} 10. Rxd1 {[%clk 0:04:53]} 10... Nc6 {[%clk 0:04:20.6]} 11. e5 {[%clk
0:04:50]} 11... Nd5 {[%clk 0:04:12.6]} 12. Nxd5 {[%clk 0:04:47.9]} 12... exd5
{[%clk 0:04:11.8]} 13. Ng5 {[%clk 0:04:38.8]} 13... Nd4 {[%clk 0:04:05.6]} 14.
Bd3 {[%clk 0:04:32.6]} 14... h6 {[%clk 0:04:01.7]} 15. Nf3 {[%clk 0:04:31.3]}
15... Nxf3+ {[%clk 0:03:58.8]} 16. gxf3 {[%clk 0:04:31.2]} 16... c4 {[%clk
0:03:50.5]} 17. Bf5 {[%clk 0:04:28.2]} 17... Bc5+ {[%clk 0:03:49]} 18. Kg2
{[%clk 0:04:26.3]} 18... d4 {[%clk 0:03:46.2]} 19. Bd2 {[%clk 0:04:23]} 19...
O-O {[%clk 0:03:39.2]} 20. a4 {[%clk 0:04:17.2]} 20... b4 {[%clk 0:03:11.3]} 21.
Be1 {[%clk 0:04:10.5]} 21... g6 {[%clk 0:03:06.2]} 22. Be4 {[%clk 0:04:08.5]}
22... Bxe4 {[%clk 0:03:04.6]} 23. fxe4 {[%clk 0:04:08.4]} 23... Rfd8 {[%clk
0:03:01.4]} 24. Bf2 {[%clk 0:04:06.6]} 24... Rac8 {[%clk 0:02:55.3]} 25. c3
{[%clk 0:04:05.3]} 25... bxc3 {[%clk 0:02:47.5]} 26. bxc3 {[%clk 0:04:04.4]}
26... d3 {[%clk 0:02:43.3]} 27. Bxc5 {[%clk 0:04:00.4]} 27... Rxc5 {[%clk
0:02:42.4]} 28. Rab1 {[%clk 0:03:58.8]} 28... g5 {[%clk 0:02:36.2]} 29. Kf3
{[%clk 0:03:48.9]} 29... Kf8 {[%clk 0:02:28.4]} 30. Rb6 {[%clk 0:03:40.9]} 30...
d2 {[%clk 0:02:11]} 31. Rxa6 {[%clk 0:03:35.9]} 31... gxf4 {[%clk 0:02:05.8]}
32. Kxf4 {[%clk 0:03:34.6]} 32... Rd3 {[%clk 0:02:04.3]} 33. Rxh6 {[%clk
0:03:30.8]} 33... Ra5 {[%clk 0:02:01.7]} 34. e6 {[%clk 0:03:25.8]} 34... fxe6
{[%clk 0:01:59.8]} 35. Rxe6 {[%clk 0:03:25.2]} 35... Rxa4 {[%clk 0:01:58.5]} 36.
e5 {[%clk 0:03:18.8]} 36... Ra3 {[%clk 0:01:53.5]} 37. Rc6 {[%clk 0:03:13]}
37... Raxc3 {[%clk 0:01:51.5]} 38. h4 {[%clk 0:03:12]} 38... Rc1 {[%clk
0:01:49.9]} 0-1

[Event "Live Chess"]
[Site "Chess.com"]
[Date "2023.05.21"]
[Round "-"]
[White "peter-785"]
[Black "YrrriKharkiv"]
[Result "0-1"]
[WhiteElo "1189"]
[BlackElo "2061"]
[TimeControl "300"]
[EndTime "4:08:31 PDT"]
[Termination "YrrriKharkiv won by resignation"]

1. e4 {[%clk 0:04:55.4]} 1... e6 {[%clk 0:04:59.1]} 2. Nf3 {[%clk 0:04:55]} 2...
d5 {[%clk 0:04:58.4]} 3. exd5 {[%clk 0:04:53.2]} 3... exd5 {[%clk 0:04:57.8]} 4.
d4 {[%clk 0:04:52.7]} 4... c6 {[%clk 0:04:57.3]} 5. Be2 {[%clk 0:04:50.8]} 5...
Bd6 {[%clk 0:04:56.8]} 6. O-O {[%clk 0:04:49.9]} 6... Ne7 {[%clk 0:04:56.4]} 7.
Re1 {[%clk 0:04:37.6]} 7... Nd7 {[%clk 0:04:54.8]} 8. Nbd2 {[%clk 0:04:29.3]}
8... O-O {[%clk 0:04:52.5]} 9. Nf1 {[%clk 0:04:28.1]} 9... Re8 {[%clk
0:04:50.9]} 10. Ng3 {[%clk 0:04:27.3]} 10... Nf8 {[%clk 0:04:48.8]} 11. c3
{[%clk 0:04:21.8]} 11... f6 {[%clk 0:04:47]} 12. Qb3 {[%clk 0:04:19.1]} 12...
Qc7 {[%clk 0:04:40.5]} 13. c4 {[%clk 0:04:01.9]} 13... Be6 {[%clk 0:04:34.5]}
14. c5 {[%clk 0:03:56.5]} 14... Bxg3 {[%clk 0:04:30.9]} 15. fxg3 {[%clk
0:03:55.2]} 15... Neg6 {[%clk 0:04:27.5]} 16. Bd3 {[%clk 0:03:30]} 16... Qd7
{[%clk 0:04:24]} 17. Nh4 {[%clk 0:03:20.7]} 17... Nxh4 {[%clk 0:04:20.2]} 18.
gxh4 {[%clk 0:03:18.7]} 18... Bf5 {[%clk 0:04:06.9]} 19. Bxf5 {[%clk 0:03:16.1]}
19... Rxe1+ {[%clk 0:04:03.3]} 20. Kf2 {[%clk 0:03:14.9]} 20... Qxf5+ {[%clk
0:04:00.1]} 21. Kxe1 {[%clk 0:03:14]} 21... Re8+ {[%clk 0:03:59.1]} 22. Kd2
{[%clk 0:03:11.7]} 22... Qf2+ {[%clk 0:03:44.6]} 0-1